[Event "12th New York International 2019"]
[Site "New York"]
[Date "2019.07.14"]
[Round "8.1"]
[White "Rohde, Michael"]
[Black "Paragua, Mark"]
[Result "1/2-1/2"]
[ECO "B22"]
[WhiteElo "2332"]
[BlackElo "2503"]
[Annotator "ChessBase"]
[PlyCount "58"]
[EventDate "2019.07.11"]
[EventType "swiss"]
[EventCountry "USA"]
[SourceTitle "playchess.com"]
[Source "ChessBase"]
[SourceQuality "1"]
[TimeControl "5400+30"]

1. e4 {[%emt 0:00:30]} c5 {[%emt 0:00:00]} 2. c3 {[%emt 0:00:05]} Nf6 {[%emt 0:01:44]} 3. e5 {[%emt 0:00:05]} Nd5 {[%emt 0:00:04]} 4. d4 {[%emt 0:00:11]} cxd4 {[%emt 0:00:06]} 5. Nf3 {[%emt 0:00:07]} Nc6 {[%emt 0:01:32]} 6. Bc4 {[%emt 0:03:39]} Nb6 {[%emt 0:03:25]} 7. Bb3 {[%emt 0:00:15]} d5 {[%emt 0:00:09]} 8. exd6 {[%emt 0:00:42]} Qxd6 {[%emt 0:00:05]} 9. O-O {[%emt 0:00:49]} Be6 {[%emt 0:01:29]} 10. Na3 {[%emt 0:01:10]} a6 {[%emt 0:11:42]} 11. Bxe6 {[%emt 0:05:31]} Qxe6 {[%emt 0:00:05]} 12. Nxd4 {[%emt 0:00:39]} Nxd4 {[%emt 0:00:06]} 13. Qxd4 {[%emt 0:03:19]} Rd8 {[%emt 0:03:18]} 14. Qh4 {[%emt 0:06:18]} h5 {[%emt 0:00:19]} 15. h3 {[%emt 0:01:29]} f6 {[%emt 0:01:05]} 16. Be3 {[%emt 0:02:42]} Nd5 {[%emt 0:01:47]} 17. Rad1 {[%emt 0:11:29]} Nxe3 {[%emt 0:07:04]} 18. Rxd8+ {[%emt 0:01:11]} Kxd8 {[%emt 0:00:06]} 19. Qd4+ {[%emt 0:00:55]} Ke8 {[%emt 0:00:27]} 20. fxe3 {[%emt 0:00:23]} g6 {[%emt 0:01:25]} 21. Nc4 {[%emt 0:11:40]} Bh6 {[%emt 0:06:42]} 22. e4 {[%emt 0:00:23]} Kf7 {[%emt 0:02:34]} 23. Nb6 {[%emt 0:01:10]} Kg7 {[%emt 0:11:55]} 24. a4 {[%emt 0:04:47]} Kh7 {[%emt 0:04:11]} 25. Kh1 {[%emt 0:05:26]} Rf8 {[%emt 0:04:27]} 26. a5 {[%emt 0:03:24]} f5 {[%emt 0:09:34]} 27. Nd7 {[%emt 0:05:02]} Rc8 {[%emt 0:00:04]} 28. Nb6 {[%emt 0:06:08]} Rf8 {[%emt 0:05:09]} 29. Nd7 {[%emt 0:00:33]} Rc8 {[%emt 0:02:19]} 1/2-1/2

[Event "12th New York International 2019"]
[Site "New York"]
[Date "2019.07.14"]
[Round "8.2"]
[White "Korley, Kassa"]
[Black "Zherebukh, Yaroslav"]
[Result "1/2-1/2"]
[ECO "E32"]
[WhiteElo "2437"]
[BlackElo "2628"]
[Annotator "ChessBase"]
[PlyCount "250"]
[EventDate "2019.07.11"]
[EventType "swiss"]
[EventCountry "USA"]
[SourceTitle "playchess.com"]
[Source "ChessBase"]
[SourceQuality "1"]
[TimeControl "5400+30"]

1. d4 {[%emt 0:00:00]} Nf6 {[%emt 0:00:00]} 2. c4 {[%emt 0:00:00]} e6 {[%emt 0:09:39]} 3. Nc3 {[%emt 0:00:00]} Bb4 {[%emt 0:00:49]} 4. Qc2 {[%emt 0:00:00]} O-O {[%emt 0:00:59]} 5. a3 {[%emt 0:00:00]} Bxc3+ {[%emt 0:00:04]} 6. Qxc3 {[%emt 0:00:00]} b6 {[%emt 0:02:42]} 7. Nf3 {[%emt 0:00:05]} Bb7 {[%emt 0:01:03]} 8. e3 {[%emt 0:00:10]} Ne4 {[%emt 0:01:28]} 9. Qc2 {[%emt 0:00:07]} f5 {[%emt 0:00:17]} 10. b4 {[%emt 0:01:02]} c5 {[%emt 0:15:08]} 11. Be2 {[%emt 0:09:52]} Nc6 {[%emt 0:17:50]} 12. bxc5 {[%emt 0:07:31]} bxc5 {[%emt 0:00:05]} 13. O-O {[%emt 0:00:04]} Rc8 {[%emt 0:04:28]} 14. Ne5 {[%emt 0:13:29]} cxd4 {[%emt 0:06:28]} 15. Nxc6 {[%emt 0:00:11]} Rxc6 {[%emt 0:01:26]} 16. exd4 {[%emt 0:00:14]} Ba6 {[%emt 0:00:04]} 17. f3 {[%emt 0:01:17]} Nf6 {[%emt 0:06:26]} 18. c5 {[%emt 0:04:02]} Bxe2 {[%emt 0:00:50]} 19. Qxe2 {[%emt 0:00:02]} Nd5 {[%emt 0:00:07]} 20. Bd2 {[%emt 0:00:13]} Qf6 {[%emt 0:07:02]} 21. Qd3 {[%emt 0:00:02]} Rfc8 {[%emt 0:03:47]} 22. Rfe1 {[%emt 0:00:07]} d6 {[%emt 0:03:20]} 23. cxd6 {[%emt 0:00:02]} Rxd6 {[%emt 0:00:04]} 24. Rac1 {[%emt 0:00:10]} Rcd8 {[%emt 0:00:55]} 25. Ba5 {[%emt 0:02:21]} R8d7 {[%emt 0:00:08]} 26. Rc8+ {[%emt 0:01:48]} Kf7 {[%emt 0:00:01]} 27. Qc4 {[%emt 0:00:10]} Ne7 {[%emt 0:00:55]} 28. Rh8 {[%emt 0:00:21]} Rxd4 {[%emt 0:05:18]} 29. Qe2 {[%emt 0:00:05]} Ng6 {[%emt 0:00:18]} 30. Ra8 {[%emt 0:00:56]} Nf4 {[%emt 0:00:24]} 31. Qc2 {[%emt 0:00:06]} R4d5 {[%emt 0:03:15]} 32. Bc3 {[%emt 0:03:22]} Rc5 {[%emt 0:05:21]} 33. Qa4 {[%emt 0:01:41]} Qe7 {[%emt 0:00:43]} 34. Bxg7 {[%emt 0:02:28]} Qd6 {[%emt 0:00:05]} 35. Rxa7 {[%emt 0:12:56]} Rxa7 {[%emt 0:00:12]} 36. Qxa7+ {[%emt 0:00:03]} Rc7 {[%emt 0:00:04]} 37. Qd4 {[%emt 0:00:28]} Qxd4+ {[%emt 0:00:04]} 38. Bxd4 {[%emt 0:00:06]} Rc2 {[%emt 0:00:02]} 39. Bf2 {[%emt 0:01:06]} Ra2 {[%emt 0:00:24]} 40. Rd1 {[%emt 0:03:48]} Rxa3 {[%emt 0:00:04]} 41. g3 {[%emt 0:02:12]} Nd5 {[%emt 0:03:49]} 42. Kg2 {[%emt 0:00:34]} Ra2 {[%emt 0:00:04]} 43. Kf1 {[%emt 0:00:05]} h5 {[%emt 0:00:22]} 44. Re1 {[%emt 0:00:04]} h4 {[%emt 0:00:58]} 45. g4 {[%emt 0:03:55]} Nf4 {[%emt 0:02:36]} 46. gxf5 {[%emt 0:02:56]} exf5 {[%emt 0:00:04]} 47. Bxh4 {[%emt 0:04:53]} Rxh2 {[%emt 0:00:06]} 48. Re7+ {[%emt 0:00:59]} Kf8 {[%emt 0:00:04]} 49. Re5 {[%emt 0:01:37]} Rxh4 {[%emt 0:02:14]} 50. Rxf5+ {[%emt 0:00:05]} Kg7 {[%emt 0:00:09]} 51. Kf2 {[%emt 0:00:26]} Ne6 {[%emt 0:00:05]} 52. Kg3 {[%emt 0:00:23]} Ra4 {[%emt 0:00:03]} 53. Rb5 {[%emt 0:00:10]} Kf6 {[%emt 0:00:03]} 54. Rb6 {[%emt 0:00:10]} Ra5 {[%emt 0:00:27]} 55. Rb4 {[%emt 0:00:06]} Kf5 {[%emt 0:00:17]} 56. Rb3 {[%emt 0:00:16]} Ng7 {[%emt 0:00:49]} 57. Rb4 {[%emt 0:00:33]} Nh5+ {[%emt 0:00:23]} 58. Kf2 {[%emt 0:00:03]} Ra3 {[%emt 0:01:42]} 59. Rb5+ {[%emt 0:00:06]} Kg6 {[%emt 0:00:04]} 60. Rb6+ {[%emt 0:00:13]} Kg5 {[%emt 0:00:05]} 61. Rb5+ {[%emt 0:00:09]} Kh4 {[%emt 0:00:09]} 62. Rb4+ {[%emt 0:00:20]} Kh3 {[%emt 0:00:14]} 63. Rg4 {[%emt 0:00:19]} Ra2+ {[%emt 0:00:25]} 64. Ke3 {[%emt 0:00:04]} Ng3 {[%emt 0:00:17]} 65. Kf4 {[%emt 0:01:41]} Ra4+ {[%emt 0:00:12]} 66. Ke5 {[%emt 0:01:38]} Ra5+ {[%emt 0:00:09]} 67. Kf4 {[%emt 0:00:17]} Rf5+ {[%emt 0:00:39]} 68. Ke3 {[%emt 0:00:05]} Kg2 {[%emt 0:00:11]} 69. f4 {[%emt 0:00:28]} Ra5 {[%emt 0:00:04]} 70. Rg5 {[%emt 0:00:53]} Ra3+ {[%emt 0:00:05]} 71. Kd4 {[%emt 0:00:08]} Kf3 {[%emt 0:00:50]} 72. Rg8 {[%emt 0:00:19]} Nf5+ {[%emt 0:00:58]} 73. Kc4 {[%emt 0:00:10]} Ra7 {[%emt 0:00:41]} 74. Rg1 {[%emt 0:00:20]} Rc7+ {[%emt 0:00:27]} 75. Kb4 {[%emt 0:00:11]} Kxf4 {[%emt 0:00:46]} 76. Rf1+ {[%emt 0:00:09]} Ke4 {[%emt 0:00:06]} 77. Re1+ {[%emt 0:00:08]} Ne3 {[%emt 0:00:07]} 78. Rh1 {[%emt 0:00:02]} Nf5 {[%emt 0:00:50]} 79. Re1+ {[%emt 0:00:05]} Kd5 {[%emt 0:00:04]} 80. Rh1 {[%emt 0:00:09]} Rc4+ {[%emt 0:00:14]} 81. Kb5 {[%emt 0:00:22]} Nd6+ {[%emt 0:00:44]} 82. Kb6 {[%emt 0:00:33]} Rc6+ {[%emt 0:00:07]} 83. Ka5 {[%emt 0:00:12]} Ne4 {[%emt 0:02:03]} 84. Kb5 {[%emt 0:00:48]} Nc3+ {[%emt 0:01:46]} 85. Kb4 {[%emt 0:00:09]} Rc4+ {[%emt 0:00:36]} 86. Kb3 {[%emt 0:00:03]} Ne4 {[%emt 0:00:20]} 87. Rh8 {[%emt 0:00:46]} Nc5+ {[%emt 0:00:16]} 88. Kb2 {[%emt 0:00:04]} Rg4 {[%emt 0:01:58]} 89. Kc3 {[%emt 0:00:16]} Ne4+ {[%emt 0:00:36]} 90. Kb4 {[%emt 0:00:26]} Nc5+ {[%emt 0:01:17]} 91. Kc3 {[%emt 0:00:01]} Rg3+ {[%emt 0:00:06]} 92. Kd2 {[%emt 0:00:16]} Nb3+ {[%emt 0:00:16]} 93. Ke2 {[%emt 0:00:16]} Nd4+ {[%emt 0:00:06]} 94. Kf2 {[%emt 0:00:10]} Rf3+ {[%emt 0:00:04]} 95. Kg2 {[%emt 0:00:01]} Rf6 {[%emt 0:00:10]} 96. Re8 {[%emt 0:00:18]} Ne6 {[%emt 0:00:14]} 97. Ra8 {[%emt 0:00:07]} Ke4 {[%emt 0:00:09]} 98. Ra4+ {[%emt 0:00:28]} Nd4 {[%emt 0:00:04]} 99. Ra8 {[%emt 0:00:01]} Nc2 {[%emt 0:00:38]} 100. Kg3 {[%emt 0:00:58]} Rf3+ {[%emt 0:00:49]} 101. Kg4 {[%emt 0:00:04]} Ne3+ {[%emt 0:00:03]} 102. Kg5 {[%emt 0:00:02]} Rf5+ {[%emt 0:00:08]} 103. Kg6 {[%emt 0:00:02]} Nd5 {[%emt 0:00:17]} 104. Ra1 {[%emt 0:01:23]} Rf6+ {[%emt 0:01:12]} 105. Kg5 {[%emt 0:00:42]} Rf8 {[%emt 0:00:14]} 106. Re1+ {[%emt 0:00:12]} Kd4 {[%emt 0:00:05]} 107. Rd1+ {[%emt 0:00:10]} Ke4 {[%emt 0:00:05]} 108. Re1+ {[%emt 0:00:02]} Ne3 {[%emt 0:00:06]} 109. Ra1 {[%emt 0:00:05]} Rg8+ {[%emt 0:00:10]} 110. Kf6 {[%emt 0:00:05]} Nd5+ {[%emt 0:00:03]} 111. Kf7 {[%emt 0:00:29]} Rb8 {[%emt 0:00:03]} 112. Re1+ {[%emt 0:00:17]} Kf5 {[%emt 0:00:03]} 113. Rf1+ {[%emt 0:00:03]} Nf4 {[%emt 0:00:09]} 114. Ke7 {[%emt 0:00:03]} Rb6 {[%emt 0:00:06]} 115. Kd7 {[%emt 0:00:10]} Rh6 {[%emt 0:00:17]} 116. Kc7 {[%emt 0:00:37]} Ke5 {[%emt 0:00:19]} 117. Re1+ {[%emt 0:00:06]} Kd4 {[%emt 0:00:04]} 118. Rd1+ {[%emt 0:00:05]} Nd3 {[%emt 0:00:05]} 119. Kd7 {[%emt 0:00:16]} Ke4 {[%emt 0:00:07]} 120. Ra1 {[%emt 0:00:15]} Kd5 {[%emt 0:00:15]} 121. Ra5+ {[%emt 0:01:16]} Nc5+ {[%emt 0:00:07]} 122. Ke7 {[%emt 0:00:05]} Rb6 {[%emt 0:00:10]} 123. Kf7 {[%emt 0:00:13]} Rh6 {[%emt 0:00:31]} 124. Ke7 {[%emt 0:00:11]} Rh7+ {[%emt 0:00:05]} 125. Kf6 {[%emt 0:00:03]} Rb7 {[%emt 0:00:04]} 1/2-1/2

[Event "12th New York International 2019"]
[Site "New York"]
[Date "2019.07.14"]
[Round "8.3"]
[White "Khamrakulov, Djurabek"]
[Black "Shen, Christopher"]
[Result "1/2-1/2"]
[ECO "B22"]
[WhiteElo "2506"]
[BlackElo "2283"]
[Annotator "ChessBase"]
[PlyCount "45"]
[EventDate "2019.07.11"]
[EventType "swiss"]
[EventCountry "USA"]
[SourceTitle "playchess.com"]
[Source "ChessBase"]
[SourceQuality "1"]
[TimeControl "5400+30"]

1. e4 {[%emt 0:00:00]} c5 {[%emt 0:00:00]} 2. Nf3 {[%emt 0:00:25]} e6 {[%emt 0:00:00]} 3. c3 {[%emt 0:00:34]} d5 {[%emt 0:00:36]} 4. exd5 {[%emt 0:00:19]} exd5 {[%emt 0:01:09]} 5. d4 {[%emt 0:00:03]} Nc6 {[%emt 0:01:04]} 6. Be3 {[%emt 0:00:47]} c4 {[%emt 0:03:16]} 7. b3 {[%emt 0:00:45]} cxb3 {[%emt 0:00:57]} 8. axb3 {[%emt 0:00:03]} Nf6 {[%emt 0:01:54]} 9. Bd3 {[%emt 0:00:36]} Bg4 {[%emt 0:01:55]} 10. Nbd2 {[%emt 0:00:47]} Bd6 {[%emt 0:01:23]} 11. O-O {[%emt 0:01:01]} O-O {[%emt 0:00:53]} 12. Bg5 {[%emt 0:01:41]} h6 {[%emt 0:06:25]} 13. Be3 {[%emt 0:10:23]} Qd7 {[%emt 0:08:29]} 14. Qb1 {[%emt 0:09:38]} Rfe8 {[%emt 0:03:02]} 15. Re1 {[%emt 0:01:55]} Bxf3 {[%emt 0:06:10]} 16. Nxf3 {[%emt 0:00:45]} Ne4 {[%emt 0:00:52]} 17. c4 {[%emt 0:13:42]} Nb4 {[%emt 0:08:23]} 18. Rc1 {[%emt 0:05:29]} Nxd3 {[%emt 0:07:51]} 19. Qxd3 {[%emt 0:00:27]} a6 {[%emt 0:02:49]} 20. Ra5 {[%emt 0:12:35]} Nf6 {[%emt 0:03:00]} 21. cxd5 {[%emt 0:08:45]} Bb4 {[%emt 0:05:48]} 22. Ne5 {[%emt 0:01:49]} Qd6 {[%emt 0:00:54]} 23. Ra4 {[%emt 0:08:12]} 1/2-1/2

[Event "12th New York International 2019"]
[Site "New York"]
[Date "2019.07.14"]
[Round "8.4"]
[White "Shen, Victor"]
[Black "Brodsky, David"]
[Result "0-1"]
[ECO "A40"]
[WhiteElo "2418"]
[BlackElo "2432"]
[Annotator "ChessBase"]
[PlyCount "58"]
[EventDate "2019.07.11"]
[EventType "swiss"]
[EventCountry "USA"]
[SourceTitle "playchess.com"]
[Source "ChessBase"]
[SourceQuality "1"]
[TimeControl "5400+30"]

1. c4 {[%emt 0:14:44]} b6 {[%emt 0:00:00]} 2. d4 {[%emt 0:00:32]} Bb7 {[%emt 0:00:07]} 3. Nc3 {[%emt 0:00:24]} e6 {[%emt 0:00:12]} 4. Bf4 {[%emt 0:04:38]} Nf6 {[%emt 0:04:26]} 5. e3 {[%emt 0:00:12]} Bb4 {[%emt 0:05:52]} 6. Qb3 {[%emt 0:12:09]} c5 {[%emt 0:00:36]} 7. dxc5 {[%emt 0:02:36]} Bxc5 {[%emt 0:02:44]} 8. Nf3 {[%emt 0:05:00]} O-O {[%emt 0:03:00]} 9. Be2 {[%emt 0:01:04]} Be7 {[%emt 0:05:03]} 10. Rd1 {[%emt 0:07:53]} Nh5 {[%emt 0:05:16]} 11. Bd6 {[%emt 0:00:44]} Bxd6 {[%emt 0:00:12]} 12. Rxd6 {[%emt 0:00:03]} Qe7 {[%emt 0:00:20]} 13. Rd2 {[%emt 0:07:07]} Nf6 {[%emt 0:02:28]} 14. O-O {[%emt 0:00:23]} Nc6 {[%emt 0:03:01]} 15. Rfd1 {[%emt 0:09:37]} Na5 {[%emt 0:04:30]} 16. Qa4 {[%emt 0:01:04]} Bc6 {[%emt 0:06:10]} 17. Qc2 {[%emt 0:02:05]} Bxf3 {[%emt 0:00:14]} 18. gxf3 {[%emt 0:05:59]} Rac8 {[%emt 0:00:49]} 19. Qa4 {[%emt 0:04:44]} Qc5 {[%emt 0:00:44]} 20. f4 {[%emt 0:03:23]} Qf5 {[%emt 0:05:25]} 21. Rd4 {[%emt 0:04:42]} Qh3 {[%emt 0:05:07]} 22. Bf1 {[%emt 0:01:14]} Qh4 {[%emt 0:06:42]} 23. R1d2 {[%emt 0:01:53]} Kh8 {[%emt 0:02:23]} 24. Bg2 {[%emt 0:04:07]} Nc6 {[%emt 0:02:26]} 25. Rd6 {[%emt 0:01:51]} g5 {[%emt 0:02:55]} 26. fxg5 {[%emt 0:00:02]} Qxg5 {[%emt 0:01:04]} 27. Qb5 {[%emt 0:02:51]} Ne5 {[%emt 0:02:17]} 28. Rxd7 {[%emt 0:01:15]} Nfxd7 {[%emt 0:01:22]} 29. Rxd7 {[%emt 0:00:21]} Rg8 {[%emt 0:00:22]} 0-1